Workbook

Sheet Dépôts et typologies
A2: Répartition par secteur du nombre de dépôts et documents reçus par dépôt légal de documents graphiques et photographiques
B4: 2016 | D4: 2017 | F4: 2018
B5: Total dépôts | C5: Total documents déposés | D5: Total dépôts | E5: Total documents déposés | F5: Total dépôts | G5: Total documents déposés
A6: Imagerie | B6: 1693 | C6: 5320 | D6: 2096 | E6: 8971 | F6: 2111 | G6: 7601
A7: Affiche | B7: 250 | C7: 542 | D7: 269 | E7: 331 | F7: 658 | G7: 1109
A8: Gravure-estampe | B8: 336 | C8: 433 | D8: 242 | E8: 253 | F8: 336 | G8: 366
A9: Livre d'artiste, Livre graphique | B9: 78 | C9: 92 | D9: 70 | E9: 70 | F9: 72 | G9: 72
A10: Photographie | B10: 7 | C10: 150 | D10: 9 | E10: 87 | F10: 39 | G10: 460
A11: Totaux | B11: =SUM(B6:B10) -> 2364 | C11: 6537 | D11: 2686 | E11: 9712 | F11: 3216 | G11: 9608
A12: Source : Entrées dépôt légal
A14: Nature des documents reçus par dépôt légal tous secteurs
A16: Typologie des documents | B16: 2016 | C16: 2017 | D16: 2018
A17: Affiche | B17: 538 | C17: 298 | D17: 836
A18: Albums à colorier | B18: 731 | C18: 634 | D18: 781
A19: Autocollants | B19: 275 | C19: 308 | D19: 446
A20: Bons points | B20: 200 | C20: 1050
A21: Jeu de bons points | D21: 1
A22: Calendriers | B22: 138 | C22: 891 | D22: 414
A23: carte postale d'artiste | C23: 5 | D23: 13
A24: Cartes à jouer et jeux de cartes | B24: 965 | C24: 967 | D24: 375
A25: Cartes de fantaisie | B25: 333 | C25: 850 | D25: 1586
A26: Cartes de vœux | B26: 82 | C26: 80 | D26: 47
A27: Cartes postales | B27: 1509 | C27: 3574 | D27: 3171
A28: Images et cartes publicitaires | B28: 19 | C28: 39 | D28: 271
A29: Cartons d'invitation | B29: 6 | C29: 17 | D29: 31
A30: Image à découper | B30: 54 | C30: 50 | D30: 226
A31: Ephemera d'artiste - travaux graphiques | B31: 4 | C31: 24 | D31: 3
A32: Estampe originale | B32: 341 | C32: 241 | D32: 330
A33: Graphzine | B33: 39
A34: Livre animé, flip-book | B34: 15 | D34: 1
A35: Imagerie diverse (non typé) | B35: 200
A36: Imagerie religieuse | B36: 39 | C36: 40
A37: Imagiers, livres d'images | B37: 9 | C37: 1 | D37: 8
A38: Kamishibai (planche) | B38: 541
A39: Kamishibaï | C39: 53 | D39: 29
A40: Livre d'activités liés à l'image | B40: 48 | C40: 142 | D40: 24
A41: Livre d'artiste | B41: 27 | C41: 54 | D41: 34
A42: Livre graphique (2) | B42: 26 | C42: 17 | D42: 38
A43: Livre de photographe | C43: 2 | D43: 7
A44: Périodique de photographies originales | C44: 1
A45: Marque-pages | B45: 49 | C45: 35 | D45: 49
A46: Matériel didactique (modèles) | C46: 7
A47: Image didactique | B47: 105 | D47: 21
A48: Panneaux didactiques | B48: 16 | C48: 36 | D48: 12
A49: Photographie originale | B49: 150 | C49: 85 | D49: 433
A50: portfolio d'estampes | B50: 69 | C50: 12 | D50: 33
A51: Portfolio de photographie | B51: 4 | C51: 3
A52: Poster | B52: 37 | C52: 40 | D52: 165
A53: Album et planche de reproductions d'œuvre | B53: 91 | C53: 101 | D53: 215
A54: Alphabet | B54: 20
A55: Sets de table | B55: 7 | C55: 42
A56: Éléments de jeux, puzzle | B56: 58 | C56: 18 | D56: 8
A57: Source : Entrées dépôt légal
A59: *Un portfolio n'est pas compris dans le total ; ses planches sont comptabilisées à la ligne "photographie positive originale"
A60: (2) A partir de 2017, comprend les livres graphiques, graphzines et fanzines

Sheet Imagerie
A2: Liste des 10 principaux déposants par année de dépôt - Imagerie
B4: 2016 | F4: 2017 | J4: 2018
A5: Nom déposant | B5: Nb dépôts | C5: Documents déposés | E5: Nom déposant | F5: Nb dépôts | G5: Documents déposés | I5: Nom déposant | J5: Nb dépôts | K5: Documents déposés
A6: EDY S.A. | B6: 26 | C6: 603 | E6: Editions Lito | F6: 221 | G6: 1506 | I6: EDY S.A. | J6: 74 | K6: 2292
A7: Editions Cellard | B7: 24 | C7: 503 | E7: Editions Cellard | F7: 72 | G7: 1443 | I7: JOS LE DOARE EDITIONS | J7: 73 | K7: 898
A8: KIEFFER, Michel | B8: 31 | C8: 396 | E8: EDY S.A. | F8: 38 | G8: 1047 | I8: Editions Normandes Le Goubey | J8: 21 | K8: 499
A9: Editions Lito | B9: 90 | C9: 295 | E9: Editions Normandes Le Goubey | F9: 22 | G9: 760 | I9: Editions Piccolia | J9: 299 | K9: 299
A10: EDITIONS VALOIRE-ESTEL | B10: 36 | C10: 266 | E10: Editions Lavigne | F10: 8 | G10: 536 | I10: ATELIER DES NOYERS | J10: 21 | K10: 289
A11: Edilarge-Éditions Ouest-France | B11: 21 | C11: 193 | E11: EDITIONS VALOIRE-ESTEL | F11: 89 | G11: 345 | I11: Editions Cellard | J11: 22 | K11: 221
A12: Didémo | B12: 2 | C12: 186 | E12: WHEE ! | F12: 4 | G12: 270 | I12: Editions Lavigne | J12: 2 | K12: 216
A13: MSM S.A.S. | B13: 12 | C13: 161 | E13: Editions Jos le Doare | F13: 24 | G13: 261 | I13: Hachette Jeunesse | J13: 203 | K13: 203
A14: Hachette Jeunesse | B14: 159 | C14: 159 | E14: MSM S.A.S. | F14: 83 | G14: 230 | I14: GELABERT Serge | J14: 4 | K14: 202
A15: Hemma Editions S.A. | B15: 134 | C15: 134 | E15: ATELIER DES NOYERS | F15: 11 | G15: 205 | I15: L'autre chemin | J15: 4 | K15: 188
A16: TES CRDP de Bretagne | B16: 4 | C16: 133 | E16: Hemma Editions S.A. | F16: 171 | G16: 171 | I16: Hemma Editions S.A. | J16: 149 | K16: 149
A17: Centre des monuments nationaux Editions du Patrimoine | B17: 92 | C17: 92 | E17: Editions Le Souffle d'Or | F17: 2 | G17: 131 | I17: Centre des monuments nationaux Editions du Patrimoine | J17: 103 | K17: 139
A18: Hachette pratique | B18: 77 | C18: 77 | E18: Editions des deux coqs d'or | F18: 108 | G18: 108 | I18: Bibliothèque Départementale de la Réunion | J18: 9 | K18: 134
A19: Les éditions du Pas de l'Echelle | B19: 5 | C19: 68 | E19: J CARTIER-BRESSON | F19: 3 | G19: 107 | I19: EDITIONS DU CARMEL | J19: 1 | K19: 133
A20: Baracetti | B20: 1 | C20: 68 | E20: Hachette Jeunesse | F20: 104 | G20: 104 | I20: Editions Lito | J20: 98 | K20: 98
A21: Editions des deux coqs d'or | B21: 62 | C21: 62 | E21: Centre des monuments nationaux Editions du Patrimoine | F21: 39 | G21: 87 | I21: Editions des deux coqs d'or | J21: 78 | K21: 78
A22: OVET SOUVENIRS | B22: 8 | C22: 60 | E22: Fleurus-Mame | F22: 5 | G22: 86 | I22: MSM S.A.S. | J22: 17 | K22: 59
A23: Marabout | B23: 43 | C23: 57 | E23: Hachette pratique | F23: 68 | G23: 68 | I23: Le Ballon | J23: 56 | K23: 56
A24: COMMUNAUTÉ URBAINE D'ARRAS Direction de la communication | B24: 1 | C24: 56 | E24: Thierry SAINT-LUC et Julien ESCAFFRE | F24: 4 | G24: 66 | I24: Hugo & Cie | J24: 55 | K24: 55
A25: Jean MICHAUT | B25: 1 | C25: 55 | E25: Hugo & Cie | F25: 56 | G25: 56 | I25: Pika Edition | J25: 2 | K25: 51
A26: WHEE ! | B26: 1 | C26: 55 | E26: Edilarge-Éditions Ouest-France | F26: 9 | G26: 50 | I26: Prisma Media | J26: 3 | K26: 43
A27: Association Les Requins Marteaux | B27: 1 | C27: 54 | E27: Laure BOMPIEYRE | F27: 47 | G27: 47 | I27: Association d'une langue à l'autre | J27: 1 | K27: 42
A28: Kamishibaïs Editions | B28: 4 | C28: 54 | E28: Musée de l'image / ville d'Epinal | F28: 4 | G28: 45 | I28: Thierry SAINT-LUC et Julien ESCAFFRE | J28: 2 | K28: 41
A29: Hugo & Cie | B29: 52 | C29: 52 | E29: JOUVENCE (éditions) | F29: 1 | G29: 43 | I29: Hachette pratique | J29: 35 | K29: 40
A30: BAYARD JEUNESSE | B30: 10 | C30: 51 | E30: Groupe Fleurus | F30: 38 | G30: 38 | I30: Anonyme | J30: 2 | K30: 38
A31: Groupe Fleurus | B31: 44 | C31: 47 | E31: KIEFFER, Michel | F31: 31 | G31: 37 | I31: Musée de l'image / ville d'Epinal | J31: 6 | K31: 38
A32: Partage | B32: 2 | C32: 45 | E32: FRAC D'ÎLE-DE-FRANCE | F32: 1 | G32: 37 | I32: Editions Actes Sud | J32: 3 | K32: 38
A33: LOVINGEDEL ÉDITIONS | B33: 2 | C33: 42 | E33: LA POISSONNERIE (ASSOCIATION) | F33: 1 | G33: 36 | I33: Hachette-Livre Editions du Chêne et EPA | J33: 11 | K33: 38
A34: SDP le livre club | B34: 42 | C34: 42 | E34: Play Bac | F34: 35 | G34: 35 | I34: Le Carré Scène nationale - Centre d'art contemporain | J34: 1 | K34: 32
A35: LA POISSONNERIE (ASSOCIATION) | B35: 1 | C35: 42 | E35: Le Ballon | F35: 35 | G35: 35 | I35: Marabout | J35: 31 | K35: 31
A36: ASSOCIATION DJENIES DJEMBE | B36: 3 | C36: 41 | E36: PEGASE | F36: 1 | G36: 33 | I36: LA MÉSANGE BLEUE (ÉDITIONS) | J36: 4 | K36: 30
A37: RVB | B37: 1 | C37: 38 | E37: OVET SOUVENIRS | F37: 5 | G37: 30 | I37: Laure BOMPIEYRE | J37: 30 | K37: 30
A38: ÉDITIONS HAONA | B38: 1 | C38: 34 | E38: Mairie de Besançon | F38: 17 | G38: 28 | I38: Ville de Besançon | J38: 12 | K38: 29
A39: Hachette Livres Département Dépôt légal | B39: 27 | C39: 34 | E39: Marabout | F39: 24 | G39: 24 | I39: LA POISSONNERIE (ASSOCIATION) | J39: 1 | K39: 25
A40: ASSOCIATION EXTRA | B40: 3 | C40: 33 | E40: LA MÉSANGE BLEUE (ÉDITIONS) | F40: 4 | G40: 24 | I40: LAFORÊT Laetitia | J40: 1 | K40: 25
A41: ANAKA | B41: 1 | C41: 31 | E41: SDP le livre club | F41: 20 | G41: 20 | I41: Mairie de Besançon | J41: 22 | K41: 22
A42: Hachette-Livre Editions du Chêne et EPA | B42: 29 | C42: 29 | E42: LITAVIS | F42: 20 | G42: 20 | I42: Dessain et Tolra | J42: 21 | K42: 21
A43: Editions A. LECONTE | B43: 6 | C43: 29 | E43: Geste éditions | F43: 19 | G43: 19 | I43: Editions Milan | J43: 20 | K43: 20
A44: VOIX D'ENCRE (ÉDITIONS) | B44: 3 | C44: 29 | E44: EITIONS DU MONITEUR - INFOPRO DIGITAL | F44: 19 | G44: 19 | I44: APPENDICES | J44: 1 | K44: 20
A45: JM2 EDITIONS | B45: 1 | C45: 28 | E45: Editions Nathan | F45: 19 | G45: 19 | I45: Gallimard Jeunesse | J45: 20 | K45: 20
A46: Mairie de Besançon | B46: 13 | C46: 28 | E46: SODIS | F46: 19 | G46: 19 | I46: Play Bac | J46: 19 | K46: 19
A47: Musée de Morlaix | B47: 6 | C47: 27 | E47: Panini France | F47: 19 | G47: 19 | I47: SDP le livre club | J47: 19 | K47: 19
A48: Michèle SARRAT | B48: 1 | C48: 27 | E48: Editions Gründ Jeunesse | F48: 19 | G48: 19 | I48: EDITIONS VENUS D'AILLEURS | J48: 2 | K48: 17
A49: REPER' & VOUS | B49: 3 | C49: 25 | E49: Editions 365 | F49: 18 | G49: 18 | I49: EDITIONS HYDRA | J49: 1 | K49: 16
A50: Clorophyl Editions | B50: 24 | C50: 24 | E50: Parmentier, Pascal P. | F50: 17 | G50: 17 | I50: Editions Larousse | J50: 16 | K50: 16
A51: Editions Milan | B51: 13 | C51: 24 | E51: Albin Michel Jeunesse | F51: 17 | G51: 17 | I51: Geste éditions | J51: 15 | K51: 15
A52: Gallimard Jeunesse | B52: 23 | C52: 23 | E52: Ville de Besançon | F52: 10 | G52: 16 | I52: KIEFFER, Michel | J52: 15 | K52: 15
A53: Olivier BRICE | B53: 1 | C53: 21 | E53: Musée des beaux-arts de Brest | F53: 16 | G53: 16 | I53: Éditions Apeiron | J53: 14 | K53: 14
A54: CAUSERIES CULINAIRES (LES) | B54: 20 | C54: 20 | E54: LES EDITIONS DE L'IMPLIQUE | F54: 1 | G54: 16 | I54: Fleurus éditions - Marque Fleurus Découvertes | J54: 14 | K54: 14
A55: IMPRIMERIE NATIONALE Atelier du livre d'art et de l'estampe | B55: 2 | C55: 20 | E55: Editions Ylang images | F55: 2 | G55: 15 | I55: Kamishibaïs Editions | J55: 13 | K55: 13
A56: Parmentier, Pascal P. | B56: 7 | C56: 19 | E56: CULTURE DIFF | F56: 15 | G56: 15 | I56: Editions Gründ Jeunesse | J56: 13 | K56: 13
A57: Editions Gründ Jeunesse | B57: 18 | C57: 18 | E57: Groupement national interprofessionnel des semences, graines et plants | F57: 2 | G57: 15 | I57: ABC DES BANDES DESSINEES | J57: 2 | K57: 12
A58: Cerise bleue | B58: 18 | C58: 18 | E58: Michèle SARRAT | F58: 1 | G58: 14 | I58: Fleurus éditions - Marque Rustica Editions | J58: 12 | K58: 12
A59: Albin Michel Jeunesse | B59: 17 | C59: 17 | E59: Hachette-Livre Editions du Chêne et EPA | F59: 13 | G59: 13 | I59: CNRS MIDI-PYRENEES | J59: 1 | K59: 12
A60: Editions Nathan | B60: 17 | C60: 17 | E60: Jeunesse au plein air | F60: 1 | G60: 12 | I60: MHB CREATION | J60: 1 | K60: 12
A61: Jeunesse au plein air | B61: 1 | C61: 16 | E61: TES CRDP de Bretagne | F61: 2 | G61: 12 | I61: Les Livres du Dragon d'Or | J61: 11 | K61: 11
A62: Play Bac | B62: 16 | C62: 16 | E62: Callicephale Editions | F62: 12 | G62: 12 | I62: Jeunesse au plein air | J62: 1 | K62: 11
A63: Langue au chat | B63: 15 | C63: 15 | E63: Editions Pitchou | F63: 11 | G63: 11 | I63: Fleurus éditions - Marque Vagnon | J63: 9 | K63: 11
A64: Les Livres du Dragon d'Or | B64: 13 | C64: 13 | E64: Editions First | F64: 11 | G64: 11 | I64: MG Editions | J64: 10 | K64: 10
A65: Editions 365 | B65: 13 | C65: 13 | E65: Hatier Editions | F65: 11 | G65: 11 | I65: Editions Artémis | J65: 10 | K65: 10
A66: Editions Mila | B66: 13 | C66: 13 | E66: Editions Auzou | F66: 11 | G66: 11 | I66: Editions Mila | J66: 10 | K66: 10
A67: C COM CHAT | B67: 1 | C67: 13 | E67: Editions Larousse | F67: 10 | G67: 10 | I67: Fleurus-Mame | J67: 10 | K67: 10
A68: Editions Des Grandes Personnes | B68: 3 | C68: 12 | E68: DG Diffusion | F68: 10 | G68: 10 | I68: SODIS | J68: 10 | K68: 10
A69: Lise DUCONTE | B69: 12 | C69: 12 | E69: Editions Milan | F69: 10 | G69: 10 | I69: ZANDVLIET Pierre | J69: 3 | K69: 10
A70: Editions Gründ | B70: 12 | C70: 12 | E70: Les Livres du Dragon d'Or | F70: 9 | G70: 9 | I70: Claudine DELMAS | J70: 2 | K70: 10
A71: La maison est en carton | B71: 7 | C71: 12 | E71: Danielle GODART | F71: 1 | G71: 9 | I71: Editions First | J71: 9 | K71: 9
A72: EITIONS DU MONITEUR - INFOPRO DIGITAL | B72: 12 | C72: 12 | E72: Usborne publishing | F72: 9 | G72: 9 | I72: Edilarge-Éditions Ouest-France | J72: 8 | K72: 9
A73: Panini France | B73: 11 | C73: 11 | E73: SEYNAEVE Pascale | F73: 1 | G73: 8 | I73: COMPLICES EDTIONS | J73: 1 | K73: 9
A74: Jean-Marie MICHEL | B74: 1 | C74: 10 | E74: Clorophyl Editions | F74: 8 | G74: 8 | I74: France Loisirs | J74: 9 | K74: 9
A75: Doré Sophie | B75: 1 | C75: 10 | E75: Editions Quatre Fleuves | F75: 7 | G75: 7 | I75: CHANTECLER BELGIQUE | J75: 8 | K75: 8
A76: Editions Solar | B76: 9 | C76: 9 | E76: Editions Piccolia | F76: 7 | G76: 7 | I76: Hatier Editions | J76: 8 | K76: 8
A77: ANAGRAPHIS | B77: 1 | C77: 9 | E77: France Loisirs | F77: 7 | G77: 7 | I77: Fleurus éditions - Marque Mango Art de Vivre | J77: 8 | K77: 8
A78: Centre France Livres | B78: 9 | C78: 9 | E78: Chantecler France | F78: 6 | G78: 6 | I78: Editions Glénat | J78: 8 | K78: 8
A79: S. Corrieri création | B79: 8 | C79: 8 | E79: M. Dalle-Rive | F79: 1 | G79: 6 | I79: Design Peï | J79: 8 | K79: 8
A80: YVES DUCOURTIOUX EDITEUR | B80: 1 | C80: 8 | E80: Langue au chat | F80: 6 | G80: 6 | I80: Communauté de communes carmausin-ségala | J80: 8 | K80: 8
A81: Serge Philippe LECOURT | B81: 1 | C81: 8 | E81: BAYARD JEUNESSE | F81: 6 | G81: 6 | I81: Editions Nathan | J81: 1 | K81: 7
A82: Editions FLBLB | B82: 8 | C82: 8 | E82: GRAND COGNAC, Communauté d'agglomération | F82: 1 | G82: 6 | I82: Danielle GODART | J82: 2 | K82: 7
A83: OPERA NATIONAL DE BORDEAUX | B83: 8 | C83: 8 | E83: KAZÉ MANGA / ASUKA | F83: 6 | G83: 6 | I83: DALLE-RIVE, Jean-François | J83: 1 | K83: 7
A84: Editions Glénat | B84: 7 | C84: 7 | E84: BEAUSET, Armanini Yvon | F84: 2 | G84: 5 | I84: Huginn & Muninn / Mediatoon Licensing | J84: 6 | K84: 6
A85: ETATS DE BRETAGNE (EDITIONS) | B85: 4 | C85: 6 | E85: Editions Actes Sud | F85: 5 | G85: 5 | I85: Guy Delcourt Productions | J85: 6 | K85: 6
A86: EDITIONS COURTES ET LONGUES | B86: 6 | C86: 6 | E86: Editions Babiroussa | F86: 5 | G86: 5 | I86: Editions Maguerite Waknine | J86: 6 | K86: 6
A87: DG Diffusion | B87: 6 | C87: 6 | E87: Editions Mila | F87: 4 | G87: 4 | I87: Editions Flammarion | J87: 6 | K87: 6
A88: Delphine MOULET | B88: 6 | C88: 6 | E88: BOETTCHER, Michel | F88: 4 | G88: 4 | I88: LIBELLA | J88: 6 | K88: 6
A89: MAARTIN | B89: 6 | C89: 6 | E89: Mango S.A. | F89: 4 | G89: 4 | I89: Minedition | J89: 5 | K89: 5
A90: France Loisirs | B90: 6 | C90: 6 | E90: OFFICE DE TOURISME DE CERGY-PONTOISE PORTE DU VEXIN | F90: 1 | G90: 4 | I90: Lise DUCONTE | J90: 5 | K90: 5
A91: AMVOULI FIRA | B91: 1 | C91: 5 | E91: Editions Soleil | F91: 4 | G91: 4 | I91: SEPCHAT EDITIONS | J91: 1 | K91: 5
A92: Editions Soleil | B92: 5 | C92: 5 | E92: Editions LLB | F92: 4 | G92: 4 | I92: Panini France | J92: 5 | K92: 5
A93: Editions Néphélées | B93: 5 | C93: 5 | E93: Editions Glénat | F93: 4 | G93: 4 | I93: Mango S.A. | J93: 5 | K93: 5
A94: Editions Quatre Fleuves | B94: 5 | C94: 5 | E94: L'heure dite | F94: 4 | G94: 4 | I94: Hachette éducation | J94: 5 | K94: 5
A95: Groupe Eyrolles | B95: 5 | C95: 5 | E95: Groix Editions et Diffusion | F95: 4 | G95: 4 | I95: Papiers coupés | J95: 5 | K95: 5
A96: Hachette Collections | B96: 5 | C96: 5 | E96: Maison de la Culture du Japon à Paris | F96: 2 | G96: 4 | I96: Parmentier, Pascal P. | J96: 5 | K96: 5
A97: EDITIONS YOGI LING | B97: 1 | C97: 5 | E97: Editions Helen Exley | F97: 1 | G97: 4 | I97: Groupe Fleurus | J97: 5 | K97: 5
A98: Chantecler Belgique | B98: 5 | C98: 5 | E98: MARTEAU Patrick | F98: 2 | G98: 4 | I98: Septéditions | J98: 4 | K98: 4
A99: Conseil départemental des Deux-Sèvres, DAG / Service de la Documentation | B99: 1 | C99: 5 | E99: ICHARACTER LTD | F99: 4 | G99: 4 | I99: Editions Helen Exley | J99: 4 | K99: 4
A100: Geste éditions | B100: 5 | C100: 5 | E100: Editions ADA | F100: 4 | G100: 4 | I100: YVES DUCOURTIOUX EDITEUR | J100: 4 | K100: 4
A101: Editions de l'Archipel | B101: 4 | C101: 4 | E101: Karine VILLALONGA | F101: 4 | G101: 4 | I101: Albin Michel Jeunesse | J101: 4 | K101: 4
A102: KAZÉ MANGA / ASUKA | B102: 4 | C102: 4 | E102: Olivier BRICE | F102: 1 | G102: 4 | I102: CHAUVIN Lisa | J102: 4 | K102: 4
A103: POULET(TE) DE SARTHE | B103: 1 | C103: 4 | E103: Splash ! | F103: 4 | G103: 4 | I103: 404 Editions | J103: 4 | K103: 4
A104: ASSOCIATION FLETA | B104: 1 | C104: 4 | E104: Septéditions | F104: 2 | G104: 4 | I104: Editions Syel | J104: 4 | K104: 4
A105: Maison de la Culture du Japon à Paris | B105: 2 | C105: 4 | E105: TEMPODIA (EDITIONS) | F105: 4 | G105: 4 | I105: La maison est en carton | J105: 4 | K105: 4
A106: LIBELLA | B106: 4 | C106: 4 | E106: Editions Flammarion | F106: 4 | G106: 4 | I106: Clorophyl Editions | J106: 3 | K106: 3
A107: Guy Delcourt Productions | B107: 3 | C107: 3 | E107: C COM CHAT | F107: 3 | G107: 3 | I107: EDITIONS LA PLAGE | J107: 3 | K107: 3
A108: Colorant 14 | B108: 3 | C108: 3 | E108: CAIRN EDITIONS | F108: 3 | G108: 3 | I108: Terre Vivante | J108: 3 | K108: 3
A109: Mango S.A. | B109: 3 | C109: 3 | E109: Editions Clin d'Oeil | F109: 3 | G109: 3 | I109: Groupement national interprofessionnel des semences, graines et plants | J109: 3 | K109: 3
A110: Syndicat mixte du Parc régional de l'Avesnois | B110: 2 | C110: 3 | E110: L'ABRI-COT | F110: 1 | G110: 3 | I110: Editions de l'instant durable | J110: 3 | K110: 3
A111: Association couleur cirque | B111: 1 | C111: 3 | E111: Cartophiles et historiens tarnais | F111: 2 | G111: 3 | I111: Messagerie ADP | J111: 3 | K111: 3
A112: City éditions | B112: 3 | C112: 3 | E112: 2B2M | F112: 3 | G112: 3 | I112: KAZÉ MANGA / ASUKA | J112: 3 | K112: 3
A113: Minus Editions | B113: 3 | C113: 3 | E113: ABC DES BANDES DESSINEES | F113: 3 | G113: 3 | I113: Hachette-livre, collection Disney | J113: 3 | K113: 3
A114: MARTEAU Patrick | B114: 3 | C114: 3 | E114: Delphine MOULET | F114: 3 | G114: 3 | I114: DG Diffusion | J114: 3 | K114: 3
A115: Editions Maguerite Waknine | B115: 3 | C115: 3 | E115: Editions Contre-dires | F115: 3 | G115: 3 | I115: MESC | J115: 3 | K115: 3
A116: Les Editions de Saxe | B116: 3 | C116: 3 | E116: Association Tranch Papaye | F116: 3 | G116: 3 | I116: Les trois ourses | J116: 1 | K116: 3
A117: Lieutenant Willsdorff | B117: 3 | C117: 3 | E117: Editions de la Martinière | F117: 3 | G117: 3 | I117: Mairie de Bouguenais | J117: 1 | K117: 2
A118: MARGOT EDITIONS | B118: 1 | C118: 3 | E118: Coop Breizh | F118: 3 | G118: 3 | I118: Rassemblement à Son Image | J118: 2 | K118: 2
A119: Liliane SCHWEBEL | B119: 2 | C119: 3 | E119: Lise DUCONTE | F119: 3 | G119: 3 | I119: Philbert, Roger | J119: 2 | K119: 2
A120: BEAUSET, Armanini Yvon | B120: 2 | C120: 3 | E120: Terre Vivante | F120: 3 | G120: 3 | I120: Atelier Esope | J120: 2 | K120: 2
A121: Editions Casterman S.A. | B121: 3 | C121: 3 | E121: La vie moderne | F121: 3 | G121: 3 | I121: Serge STRIPPENTOIR | J121: 2 | K121: 2
A122: Fleurus-Mame | B122: 3 | C122: 3 | E122: YVES DUCOURTIOUX EDITEUR | F122: 3 | G122: 3 | I122: Association Anémochorie | J122: 2 | K122: 2
A123: ASSELIN, Noël | B123: 1 | C123: 2 | E123: Nobi Nobi ! | F123: 2 | G123: 2 | I123: Ortolan Armanini BEAUSET | J123: 1 | K123: 2
A124: Anonyme | B124: 2 | C124: 2 | E124: Stade | F124: 2 | G124: 2 | I124: Editions de la Grange | J124: 2 | K124: 2
A125: Editions Animées | B125: 2 | C125: 2 | E125: EDITIONS CRER | F125: 2 | G125: 2 | I125: Poetry Wanted | J125: 2 | K125: 2
A126: Hatier Editions | B126: 2 | C126: 2 | E126: FRAILE MORISSON Monica | F126: 2 | G126: 2 | I126: BAYARD JEUNESSE | J126: 2 | K126: 2
A127: Pocket | B127: 2 | C127: 2 | E127: TROOVE (éditions) | F127: 1 | G127: 2 | I127: Editions Play Bac | J127: 2 | K127: 2
A128: Editions First | B128: 2 | C128: 2 | E128: Centre national des arts du cirque | F128: 2 | G128: 2 | I128: JOUVENCE (éditions) | J128: 2 | K128: 2
A129: Septéditions | B129: 2 | C129: 2 | E129: Eliart | F129: 2 | G129: 2 | I129: Usborne publishing | J129: 2 | K129: 2
A130: Editions Flammarion | B130: 2 | C130: 2 | E130: Cerise bleue | F130: 2 | G130: 2 | I130: Editions Des Grandes Personnes | J130: 2 | K130: 2
A131: CEDIS Sarl | B131: 2 | C131: 2 | E131: Excelsis Sarl | F131: 2 | G131: 2 | I131: Muséum-Aquarium de Nancy | J131: 2 | K131: 2
A132: D.G Diffusion | B132: 2 | C132: 2 | E132: Guy Delcourt Productions | F132: 2 | G132: 2 | I132: Béliveau éditeur | J132: 2 | K132: 2
A133: Editions Tourbillon/Tornade | B133: 2 | C133: 2 | E133: ATELIERS ART TERRE | F133: 1 | G133: 2 | I133: ACTUL DECOR | J133: 1 | K133: 2
A134: Le Diplodocus | B134: 2 | C134: 2 | E134: HarperCollins France SA | F134: 2 | G134: 2 | I134: Association couleur cirque | J134: 2 | K134: 2
A135: Editions Tutti Frutti | B135: 2 | C135: 2 | E135: Love Paper | F135: 2 | G135: 2 | I135: Frédéric SINCLAIR-GILLET | J135: 1 | K135: 2
A136: Editions Leconte NE PAS UTILISER CETTE FICHE VOIR Editions A. LECONTE | B136: 2 | C136: 2 | E136: Huginn & Muninn / Mediatoon Licensing | F136: 2 | G136: 2 | I136: Editions du centre Pompidou | J136: 2 | K136: 2
A137: RUTABAGA EDITIONS | B137: 2 | C137: 2 | E137: Editions Voy'el | F137: 2 | G137: 2 | I137: éditions Orphie | J137: 2 | K137: 2
A138: Lumen Christi | B138: 2 | C138: 2 | E138: J. M. FUZEAU EDITIONS | F138: 1 | G138: 2 | I138: EDITIONS DU STOP | J138: 2 | K138: 2
A139: Siranouche Editions | B139: 2 | C139: 2 | E139: RVB | F139: 2 | G139: 2 | I139: Renaud ALLIRAND | J139: 2 | K139: 2
A140: 2B2M | B140: 2 | C140: 2 | E140: Conseil départemental des Deux-Sèvres, DAG / Service de la Documentation | F140: 1 | G140: 2 | I140: EDITIONS EXERGUE | J140: 2 | K140: 2
A141: Musée de Tahiti et des Iles | B141: 2 | C141: 2 | E141: EPPDCSI-Universcience-CIté des Sciences Editions | F141: 2 | G141: 2 | I141: Friville éditions | J141: 2 | K141: 2
A142: Books on Demand | B142: 2 | C142: 2 | E142: Editions du Livre | F142: 2 | G142: 2 | I142: BULFRAN | J142: 2 | K142: 2
A143: PIKTOS (groupe éditorial) | B143: 1 | C143: 1 | E143: Sky Comm | F143: 2 | G143: 2 | I143: Tourbillon / Tornade | J143: 2 | K143: 2
A144: DZHACHKOV Martin | B144: 1 | C144: 1 | E144: Almora | F144: 2 | G144: 2 | I144: Editions Grenouille | J144: 2 | K144: 2
A145: Editions Adverse | B145: 1 | C145: 1 | E145: Tazas project | F145: 1 | G145: 2 | I145: Editions Tourbillon/Tornade | J145: 2 | K145: 2
A146: Goré Patrice | B146: 1 | C146: 1 | E146: LAURENT Laetitia | F146: 2 | G146: 2 | I146: Florence Dautry | J146: 2 | K146: 2
A147: Editions Salvator | B147: 1 | C147: 1 | E147: Tomawak Editions | F147: 2 | G147: 2 | I147: Maison de la Culture du Japon à Paris | J147: 1 | K147: 2
A148: Groix Editions et Diffusion | B148: 1 | C148: 1 | E148: Dessain et Tolra | F148: 2 | G148: 2 | I148: SAS Encre & Numérique / Éditions Animées | J148: 1 | K148: 1
A149: Editions ESI | B149: 1 | C149: 1 | E149: Editions Des Grandes Personnes | F149: 2 | G149: 2 | I149: ASSOCIATION ESCALADE ALSACE | J149: 1 | K149: 1
A150: Almora | B150: 1 | C150: 1 | E150: LIBELLA | F150: 2 | G150: 2 | I150: Editions Animées | J150: 1 | K150: 1
A151: ESCAPE AGENCY (THE) | B151: 1 | C151: 1 | E151: Fleurus éditions - Marque Fleurus Découvertes | F151: 2 | G151: 2 | I151: La p'tite scène qui bouge | J151: 1 | K151: 1
A152: BOETTCHER, Michel | B152: 1 | C152: 1 | E152: Editions Kaléidoscope | F152: 1 | G152: 1 | I152: Pyramyd Editions | J152: 1 | K152: 1
A153: Musée du Verre | B153: 1 | C153: 1 | E153: Tourbillon / Tornade | F153: 1 | G153: 1 | I153: La Vieille Douane | J153: 1 | K153: 1
A154: Kallima Editeur | B154: 1 | C154: 1 | E154: SLIDE AND CO | F154: 1 | G154: 1 | I154: Stade | J154: 1 | K154: 1
A155: Editiobs Helvétius | B155: 1 | C155: 1 | E155: Color print | F155: 1 | G155: 1 | I155: Laetitia CLAVER | J155: 1 | K155: 1
A156: Editions Gravrilles | B156: 1 | C156: 1 | E156: Editions Vigot | F156: 1 | G156: 1 | I156: OFFICE DE TOURISME DE CERGY-PONTOISE PORTE DU VEXIN | J156: 1 | K156: 1
A157: HC Editions | B157: 1 | C157: 1 | E157: Beuzit Evelyne | F157: 1 | G157: 1 | I157: Editions Artège | J157: 1 | K157: 1
A158: Editions Catalpas | B158: 1 | C158: 1 | E158: Guy TREDANIEL Editeur | F158: 1 | G158: 1 | I158: Fleurus éditions - Marque Fleurus Enfants | J158: 1 | K158: 1
A159: SAS Encre & Numérique / Éditions Animées | B159: 1 | C159: 1 | E159: Ilinx Editions | F159: 1 | G159: 1 | I159: ESA | J159: 1 | K159: 1
A160: Dargaud-Lombard | B160: 1 | C160: 1 | E160: Taschen France | F160: 1 | G160: 1 | I160: RVB | J160: 1 | K160: 1
A161: Société Cart'Com | B161: 1 | C161: 1 | E161: ILLADOR EDITIONS | F161: 1 | G161: 1 | I161: Amicale sapeurs pompiers du Grand Rodez | J161: 1 | K161: 1
A162: Kilika Editions | B162: 1 | C162: 1 | E162: Editions A. LECONTE | F162: 1 | G162: 1 | I162: Dom Garcia | J162: 1 | K162: 1
A163: Vigot | B163: 1 | C163: 1 | E163: IMAV Editions | F163: 1 | G163: 1 | I163: Blanchet Thomas Andre | J163: 1 | K163: 1
A164: La |Musardine | B164: 1 | C164: 1 | E164: Nombre 7 éditions | F164: 1 | G164: 1 | I164: Association "Les amis du Peintre Henri Zuber" | J164: 1 | K164: 1
A165: Editions Pierre Téqui | B165: 1 | C165: 1 | E165: Coloriages et découvertes | F165: 1 | G165: 1 | I165: ATELIERGALERIEDITIONS | J165: 1 | K165: 1
A166: La joie de lire | B166: 1 | C166: 1 | E166: PETITOT Manuella | F166: 1 | G166: 1 | I166: AC MEDIA (SOCIETE) LABEL MANA BOOKS | J166: 1 | K166: 1
A167: Editions de l'Elan vert | B167: 1 | C167: 1 | E167: Editions La Découverte | F167: 1 | G167: 1 | I167: Le Grand Livre du Mois | J167: 1 | K167: 1
A168: DELON, Mélanie | B168: 1 | C168: 1 | E168: Hachette Collections | F168: 1 | G168: 1 | I168: Oudin Editions | J168: 1 | K168: 1
A169: Editions Sedrap | B169: 1 | C169: 1 | E169: Jean-Jacques Moles | F169: 1 | G169: 1 | I169: L'ECHAPPEE LIBRE (EDITIONS) | J169: 1 | K169: 1
A170: Editions Helen Exley | B170: 1 | C170: 1 | E170: Surplie Blandine | F170: 1 | G170: 1 | I170: ION | J170: 1 | K170: 1
A171: Patrice Rambaud | B171: 1 | C171: 1 | E171: Gautier-Languereau | F171: 1 | G171: 1 | I171: Les Arts Décoratifs | J171: 1 | K171: 1
A172: La p'tite scène qui bouge | B172: 1 | C172: 1 | E172: Editions Dervy-Medicis | F172: 1 | G172: 1 | I172: Joël DOUILLET | J172: 1 | K172: 1
A173: ASSOCIATION SEM | B173: 1 | C173: 1 | E173: Editions Gallimard | F173: 1 | G173: 1 | I173: LES ECHAPPES | J173: 1 | K173: 1
A174: Editions Interprètes | B174: 1 | C174: 1 | E174: Éditions du cerf | F174: 1 | G174: 1 | I174: EDITEUR DE MEMOIRE | J174: 1 | K174: 1
A175: BD Kids | B175: 1 | C175: 1 | E175: Editions Loco | F175: 1 | G175: 1 | I175: Les Editions Entouca | J175: 1 | K175: 1
A176: LBV YVES ROCHER | B176: 1 | C176: 1 | E176: Basilique du Rosaire NDL éditions | F176: 1 | G176: 1 | I176: Sabaté Beriain Helios | J176: 1 | K176: 1
A177: Editions ADA | B177: 1 | C177: 1 | E177: EDITIONS GILLETTA NICE MATIN | F177: 1 | G177: 1 | I177: Editions Auzou | J177: 1 | K177: 1
A178: Le Cherche Midi Editeur | B178: 1 | C178: 1 | E178: Nicolas Cabos-Le Grand Manège | F178: 1 | G178: 1 | I178: SecondeChance | J178: 1 | K178: 1
A179: SecondeChance | B179: 1 | C179: 1 | E179: Keribus Editions | F179: 1 | G179: 1 | I179: VILLE DE FOUGERES Service des archives | J179: 1 | K179: 1
A180: ASSOCIATION LES AMIS DU PEINTRE HENRI ZUBER | B180: 1 | C180: 1 | E180: Office de Tourisme de Saint-Germain-en-Laye | F180: 1 | G180: 1 | I180: SOCIETE DES ARCHIVES HISTORIQUES ET DU MUSEE D'USSEL | J180: 1 | K180: 1
A181: Ilinx Editions | B181: 1 | C181: 1 | E181: YIL Edition - BUNEL Yannick | F181: 1 | G181: 1 | I181: Voies Off | J181: 1 | K181: 1
A182: L'école des loisirs | B182: 1 | C182: 1 | E182: Editions Cipango | F182: 1 | G182: 1 | I182: Suzanne DESPREIN | J182: 1 | K182: 1
A183: EDITIONS EXLEY | B183: 1 | C183: 1 | E183: Centre France Livres | F183: 1 | G183: 1 | I183: YIL Edition - BUNEL Yannick | J183: 1 | K183: 1
A184: Editions Jaune Citron | B184: 1 | C184: 1 | E184: RRose Editions | F184: 1 | G184: 1 | I184: La joie de lire | J184: 1 | K184: 1
A185: Transmettre | B185: 1 | C185: 1 | E185: Ki-Oon | F185: 1 | G185: 1 | I185: DE VECCHI (EDITIONS) | J185: 1 | K185: 1
A186: Les Editions du Chat qui Pêche | B186: 1 | C186: 1 | E186: Sang Dragon | F186: 1 | G186: 1 | I186: EDITIONS DU MONT-AILE | J186: 1 | K186: 1
A187: Éditions Apeiron | B187: 1 | C187: 1 | E187: La |Musardine | F187: 1 | G187: 1 | I187: Alain Beaulet éditions | J187: 1 | K187: 1
A188: Editions Jets d'Encre | B188: 1 | C188: 1 | E188: HACHETTE LIVRE EDUCATION | F188: 1 | G188: 1 | I188: Groupe Eyrolles | J188: 1 | K188: 1
A189: Editions Philippe Picquier | B189: 1 | C189: 1 | E189: LA CLAVIERE EDITIONS | F189: 1 | G189: 1 | I189: Ma Petite Crokette | J189: 1 | K189: 1
A190: Editions Jour de Nuit | B190: 1 | C190: 1 | E190: Fabienne Alliou-Lucas Photographies | F190: 1 | G190: 1 | I190: Ikas | J190: 1 | K190: 1
A191: Basilique du Rosaire NDL éditions | B191: 1 | C191: 1 | E191: La maison est en carton | F191: 1 | G191: 1 | I191: Hors Collection | J191: 1 | K191: 1
A192: Les trois ourses | B192: 1 | C192: 1 | E192: Talent Sport | F192: 1 | G192: 1 | I192: Palette... | J192: 1 | K192: 1
A193: Nicolas Cabos-Le Grand Manège | B193: 1 | C193: 1 | E193: GOUSSOT Jean-Philippe | F193: 1 | G193: 1 | I193: AUTOEDITIONS SAUVAGE | J193: 1 | K193: 1
A194: Editions La Bruyère | B194: 1 | C194: 1 | E194: Fabienne Vereecken | F194: 1 | G194: 1 | I194: Christine SANCHEZ | J194: 1 | K194: 1
A195: Editions Retz | B195: 1 | C195: 1 | E195: La nature d'à côté | F195: 1 | G195: 1 | I195: Mairie de Vénissieux | J195: 1 | K195: 1
A196: EDITIONS LA VIE DU RAIL | B196: 1 | C196: 1 | E196: TITA EDITIONS | F196: 1 | G196: 1 | I196: ION EDITIONS | J196: 1 | K196: 1
A197: Palette... | B197: 1 | C197: 1 | E197: La Plaine des Palmistes, La Réunion | F197: 1 | G197: 1 | I197: Ville de Bobigny | J197: 1 | K197: 1
A198: LIGUE DE L'ENSEIGNEMENT - SERVICE COMMUNICATION | B198: 1 | C198: 1 | E198: Hors Collection | F198: 1 | G198: 1 | I198: ARCEAU ILE DE FRANCE | J198: 1 | K198: 1
A199: Parent Nanou | B199: 1 | C199: 1 | E199: Dehaene Fabien Editeur | F199: 1 | G199: 1 | I199: Gautier-Languereau | J199: 1 | K199: 1
A200: Editions Le Chineur | B200: 1 | C200: 1 | E200: Editions du cyclone | F200: 1 | G200: 1 | I200: FCB SAJOU | J200: 1 | K200: 1
A201: Association Art et couleurs | B201: 1 | C201: 1 | E201: Biblio-Scriptura-Société biblique française | F201: 1 | G201: 1 | I201: Editions Jets d'Encre | J201: 1 | K201: 1
A202: Line et Nanou | B202: 1 | C202: 1 | E202: Editions Tutti Frutti | F202: 1 | G202: 1 | I202: Filigranes Editions | J202: 1 | K202: 1
... 213 more rows

Sheet Affiche
A2: Liste des déposants éditeurs par année de dépôt - Affiche
B4: 2016 | F4: 2017 | J4: 2018
A5: Nom déposant | B5: Nb dépôts | C5: Documents déposés | E5: Nom déposant | F5: Nb dépôts | G5: Documents déposés | I5: Nom déposant | J5: Nb dépôts | K5: Documents déposés
A6: Opéra National de Bordeaux | B6: 135 | C6: 135 | E6: Ville de Besançon | F6: 118 | G6: 118 | I6: Ville de Besançon | J6: 538 | K6: 557
A7: Bibliothèque nationale de France. Délégation à la communication | B7: 12 | C7: 18 | E7: Opéra national de Paris (Secrétariat général) | F7: 35 | G7: 35 | I7: Opéra national de Paris (Secrétariat général) | J7: 22 | K7: 44
A8: Musée de Morlaix | B8: 7 | C8: 15 | E8: Ville de Bobigny | F8: 22 | G8: 22 | I8: Sante Publique France. Ministère chargé de la santé. DADP / STSD | J8: 1 | K8: 27
A9: Michel Boettcher | B9: 15 | C9: 15 | E9: Tazasproject | F9: 20 | G9: 20 | I9: Ville de Bobigny | J9: 25 | K9: 25
A10: Ville de Bobigny | B10: 14 | C10: 15 | E10: Ville de Castres | F10: 18 | G10: 18 | I10: Tazasproject | J10: 13 | K10: 13
A11: BPCE-DDBP | B11: 13 | C11: 13 | E11: Bibliothèque nationale de France. Délégation à la communication | F11: 9 | G11: 13 | I11: Agence régionale de santé Ile-de-France | J11: 8 | K11: 9
A12: Opéra national de Paris (Secrétariat général) | B12: 12 | C12: 12 | E12: Conseil général des Deux-Sèvres | F12: 3 | G12: 7 | I12: Ministère de la transition écologique et solidaire. Direction de la communication (DICOM) | J12: 4 | K12: 9
A13: Ville de Besançon | B13: 11 | C13: 11 | E13: Maison de la culture du Japon à Paris | F13: 5 | G13: 5 | I13: Bibliothèque nationale de France. Délégation à la communication | J13: 5 | K13: 8
A14: Musée de l'image | B14: 6 | C14: 6 | E14: La comédie de Reims | F14: 5 | G14: 5 | I14: Le Brady Cinéma Théâtre | J14: 2 | K14: 7
A15: GECPAL - Groupe d'étude pour la conservation du patrimoine de la Losteau | B15: 2 | C15: 6 | E15: GECPAL - Groupe d'étude pour la conservation du patrimoine de la Losteau | F15: 1 | G15: 4 | I15: Michel Boettcher | J15: 7 | K15: 7
A16: Syndicat mixte du parc régional de l'Avesnois | B16: 1 | C16: 3 | E16: Conseil départemental de la Nièvre, Direction des Archives départementales | F16: 4 | G16: 4 | I16: Opéra National de Bordeaux | J16: 5 | K16: 5
A17: Centre national des arts du cirque | B17: 2 | C17: 3 | E17: Deutsches Historisches Institut Paris - Institut historique allemand | F17: 2 | G17: 3 | I17: Direction générale des douanes et droits indirects | J17: 2 | K17: 5
A18: Maison de la culture du Japon à Paris | B18: 3 | C18: 3 | E18: Agence régionale de santé Ile-de-France | F18: 3 | G18: 3 | I18: Syndicat mixte du parc régional de l'Avesnois | J18: 2 | K18: 3
A19: Les trois ourses | B19: 1 | C19: 2 | E19: Roussot, Alban | F19: 1 | G19: 2 | I19: Communauté de communes Creuse Sud Ouest | J19: 2 | K19: 3
A20: Conseil général de la Loire | B20: 2 | C20: 2 | E20: Syndicat mixte du parc régional de l'Avesnois | F20: 1 | G20: 2 | I20: UNESCO | J20: 1 | K20: 3
A21: Tazasproject | B21: 2 | C21: 2 | E21: Centre national des arts du cirque | F21: 2 | G21: 2 | I21: Conseil départemental du Puy-de-Dôme | J21: 1 | K21: 2
A22: Comité catholique contre la faim et pour le développement | B22: 1 | C22: 1 | E22: Comité catholique contre la faim et pour le développement | F22: 2 | G22: 2 | I22: Conseil départemental de la Nièvre, Direction des Archives départementales | J22: 2 | K22: 2
A23: Palais de l'Institut de France - Académie des Beaux - Arts | B23: 1 | C23: 1 | E23: Conseil départemental du Puy-de-Dôme | F23: 2 | G23: 2 | I23: Monastère Royal de Brou | J23: 1 | K23: 2
A24: Direction des archives et du patrimoine mobilier de l'Essonne | B24: 1 | C24: 1 | E24: M. Yan de Siber | F24: 2 | G24: 2 | I24: CNRS Midi-Pyrénées | J24: 1 | K24: 2
A25: Les éditions de l'impliqué | B25: 1 | C25: 1 | E25: Michel Boettcher | F25: 2 | G25: 2 | I25: Maison de la culture du Japon à Paris | J25: 2 | K25: 2
A26: Fédération française d'études et de sports sous-marins | B26: 1 | C26: 1 | E26: Opéra National de Bordeaux | F26: 2 | G26: 2 | I26: Domaine départemental de la Roche Jagu | J26: 1 | K26: 2
A27: Direction générale des douanes et droits indirects | B27: 1 | C27: 1 | E27: Société historique, archéologique et scientifique de Noyon | F27: 1 | G27: 1 | I27: Centre national des arts du cirque | J27: 1 | K27: 1
A28: Conseil général des Deux-Sèvres | B28: 1 | C28: 1 | E28: Association Art et couleurs | F28: 1 | G28: 1 | I28: Benoit GUIT | J28: 1 | K28: 1
A29: Institut national d'histoire de l'art | B29: 1 | C29: 1 | E29: Association pour l'éducation thérapeutique en Alsace | F29: 1 | G29: 1 | I29: Ministère de la cohésion des territoires et des Relations avec les collectivités territoriales | J29: 1 | K29: 1
A30: Association Art et couleurs | B30: 1 | C30: 1 | E30: Inclood SAS | F30: 1 | G30: 1 | I30: Ville de Reims | J30: 1 | K30: 1
A31: La comédie de Reims | B31: 1 | C31: 1 | E31: Atelier national de recherche typographique | F31: 1 | G31: 1 | I31: ONISEP | J31: 1 | K31: 1
A32: Total | B32: =SUM(B6:B31) -> 248 | C32: =SUM(C6:C31) -> 271 | E32: ONISEP Nouvelle - Aquitaine - Site de Poitiers | F32: 1 | G32: 1 | I32: Festival du Périgord Noir | J32: 1 | K32: 1
E33: Ti-embrann ar Skolioù | F33: 1 | G33: 1 | I33: ONISEP Nouvelle - Aquitaine - Site de Poitiers | J33: 1 | K33: 1
E34: Total | F34: =SUM(F6:F33) -> 266 | G34: =SUM(G6:G33) -> 280 | I34: Total | J34: =SUM(J6:J33) -> 652 | K34: =SUM(K6:K33) -> 744
A38: *Dépôts multiples arrivés dans différents services de la BnF, versés et enregistrés par lot au département des Estampes et de la photographie
A44: Liste des déposants imprimeur en région par année de dépôt - Affiche (Collecteurs d'affiches dans les régions hors métropole reversant l'exemplaire excédentaire à la BnF)
J45: 2018
B46: 2016 | F46: 2017 | I46: Nom collecteur | J46: Nb dépôts | K46: Documents déposés
A47: Nom collecteur | B47: Nb dépôts | C47: Documents déposés | E47: Nom collecteur | F47: Nb dépôts | G47: Documents déposés | I47: Bibliothèque départementale de la Réunion | J47: 2 | K47: 212
A48: Bibliothèque départementale de Saint-Denis-de-la-Réunion | B48: 1 | C48: 166 | E48: Bibliothèque Bernheim de Nouméa | F48: 2 | G48: 26 | I48: Médiathèque centrale d'agglomération Emile Zola | J48: 2 | K48: 102
A49: Bibliothèque Bernheim de Nouméa | B49: 1 | C49: 105 | E49: Archives départementales de la Guadeloupe | F49: 1 | G49: 25 | I49: Archives départementales de la guadeloupe | J49: 1 | K49: 45
A50: Total | B50: =SUM(B48:B49) -> 2 | C50: =SUM(C48:C49) -> 271 | E50: Total | F50: =SUM(F48:F49) -> 3 | G50: =SUM(G48:G49) -> 51 | I50: Bibliothèque Bernheim de Nouméa | J50: 1 | K50: 6
I51: Total | J51: =SUM(J47:J50) -> 6 | K51: =SUM(K47:K50) -> 365
A53: Catégories de déposants - Affiche
B55: 2016 | D55: 2017 | F55: 2018
B56: Nb de déposants | C56: Nb de documents déposés | D56: Nb de déposants | E56: Nb de documents déposés | F56: Nb de déposants | G56: Nb de documents déposés
A57: Administration centrale | B57: 1 | C57: 1 | F57: 2 | G57: 10
A58: Associations et assimilés | B58: 6 | C58: 11 | D58: 8 | E58: 35 | F58: 8 | G58: 25
A59: Auteurs auto-édités | B59: 1 | C59: 15 | D59: 2 | E59: 4 | F59: 2 | G59: 8
A60: Collectivités publiques | B60: 15 | C60: 496 | D60: 14 | E60: 278 | F60: 19 | G60: 1059
A61: Editeurs professionnels | B61: 2 | C61: 4 | D61: 2 | E61: 4
A62: Editeurs étrangers
A63: Galeries
A64: Sociétés savantes et de Recherche | B64: 1 | C64: 1 | D64: 2 | E64: 4
A65: Sociétés et assimilés | B65: 2 | C65: 14 | D65: 2 | E65: 6 | F65: 1 | G65: 7
A66: Total | B66: =SUM(B57:B65) -> 28 | C66: =SUM(C57:C65) -> 542 | D66: =SUM(D58:D65) -> 30 | E66: =SUM(E58:E65) -> 331 | F66: =SUM(F57:F65) -> 32 | G66: =SUM(G57:G65) -> 1109
A69: Nombre de documents déposés répartis par tranche de tirage
B71: 2016 | C71: 2017 | D71: 2018
A72: 1-100 | B72: =1+2+2+2+11+1+1+8+2+1+1+2+1 -> 35 | C72: =3+7+1+7+3+33+3+2+15 -> 74 | D72: 251
A73: 101-500 | B73: 11 | C73: 54 | D73: 204
A74: 501-1000 | B74: 17 | C74: =1+2+1+3 -> 7 | D74: 46
A75: 1001 et plus | B75: =1+1+1+1+1 -> 5 | C75: =1+3+1+1+1+2+3+1+1+2+1+2+1 -> 20 | D75: 101
A76: Non précisé | B76: =203+271 -> 474 | C76: 176 | D76: 507
A77: Total | B77: =SUM(B72:B77) -> 542 | C77: =SUM(C72:C77) -> 331 | D77: =SUM(D72:D76) -> 1109
A81: Nombre de déposants par localisation géographique - Affiche
A83: Département | B83: Nb déposants 2016 | C83: Nb déposants 2017 | D83: Nb déposants 2018
A84: Paris | B84: 8 | C84: 7 | D84: 9
A85: Essonne | B85: 2 | C85: 1 | D85: 1
A86: Seine-et-Marne | D86: 1
A87: Seine-Saint-Denis | B87: 2 | C87: 1 | D87: 2
A88: Val-de-Marne | D88: 1
A89: Yvelines | C89: 1
A90: Ain | D90: 1
A91: Bouches-du-Rhône | B91: 1
A92: Côtes-d'Armor | C92: 1 | D92: 1
A93: Creuse | D93: 1
A94: Dordogne | D94: 1
A95: Doubs | B95: 1 | C95: 1 | D95: 1
A96: Finistère | B96: 1
A97: Gironde | B97: 2 | C97: 3 | D97: 1
A98: Haute-Garonne | B98: 1 | C98: 1 | D98: 2
A99: Hérault | B99: 1 | D99: 1
A100: Loire | B100: 1
A101: Marne | B101: 2 | C101: 2 | D101: 2
A102: Meurthe-et-Moselle | C102: 1
A103: Nièvre | C103: 1 | D103: 1
A104: Nord | B104: 1 | C104: 1 | D104: 1
A105: Oise | C105: 1
A106: Puy-de-Dôme | C106: 1 | D106: 1
A107: Bas-Rhin | C107: 1
A108: Deux-Sèvres | B108: 1 | C108: 1
A109: Tarn | C109: 1
A110: Vienne | C110: 1 | D110: 1
A111: Vosges | B111: 1
A112: Guadeloupe | B112: 1 | C112: 1
A113: Total | B113: =SUM(B80:B112) -> 26 | C113: =SUM(C80:C112) -> 28 | D113: =SUM(D84:D112) -> 29
A115: départements collecteurs | B115: 2017 | C115: 2017 | D115: 2018
A116: Guadeloupe | B116: 1 | C116: 1 | D116: 1
A117: La Réunion | D117: 1
A118: Nouvelle-Calédonie | B118: 1 | C118: 1
A119: Guyane | D119: 1
A120: Total | B120: =SUM(B116:B119) -> 2 | C120: =SUM(C116:C119) -> 2 | D120: =SUM(D116:D119) -> 3
A123: Nombre de documents par nature - Secteur Affiche
A125: Nature de documents | B125: 2016 | C125: 2017 | D125: 2018
A126: Affiche | B126: 537 | C126: 298 | D126: 836
A127: Travaux graphiques | B127: 4 | C127: 24
A128: Images publicitaires | D128: 247
A129: Panneau didactique
A130: Poster | B130: 5
A131: Carte postale d'artiste | C131: 5 | D131: 13
A132: Carte d'invitation | D132: 13
A133: Carte de fantaisie | C133: 3
A134: Calendrier | C134: 1
A135: Total | B135: =SUM(B126:B130) -> 546 | C135: =SUM(C126:C134) -> 331 | D135: =SUM(D126:D134) -> 1109

Sheet Estampe
A2: Liste des déposants par année de dépôt - Estampe
B4: 2016 | F4: 2017 | J4: 2018
A5: Nom déposant | B5: Nb dépôts | C5: Documents déposés | E5: Nom déposant | F5: Nb dépôts | G5: Documents déposés | I5: Nom déposant | J5: Nb dépôts | K5: Documents déposés
A6: URDLA Centre international estampe & livre | B6: 62 | C6: 87 | E6: Allirand Renaud | F6: 54 | G6: 54 | I6: Idem | J6: 201 | K6: 201
A7: NEYROD Dominique | B7: 45 | C7: 45 | E7: URDLA Centre international estampe & livre | F7: 48 | G7: 48 | I7: Ortiz, Jean-François | J7: 2 | K7: 24
A8: Editions Anagraphis | B8: 36 | C8: 36 | E8: Maillard Maurice | F8: 23 | G8: 23 | I8: URDLA Centre international estampe & livre | J8: 23 | K8: 23
A9: Atelier le Grand Village | B9: 20 | C9: 29 | E9: Galerie Lelong | F9: 14 | G9: 14 | I9: GOUTTEFANJAT Patrice | J9: 21 | K9: 21
A10: CLEEREN Luce | B10: 28 | C10: 28 | E10: RUIZ | F10: 13 | G10: 13 | I10: Atelier le Grand Village | J10: 16 | K10: 16
A11: MALDAGUE Nicolas | B11: 1 | C11: 22 | E11: Pazot Brigitte | F11: 12 | G11: 12 | I11: Gohier Anne | J11: 10 | K11: 10
A12: Le Dernier Cri | B12: 1 | C12: 22 | E12: Editions du Trainailleur | F12: 1 | G12: 12 | I12: VANDRISSE Christine - Les Editions d'Emerence | J12: 1 | K12: 9
A13: Galerie Lelong | B13: 21 | C13: 21 | E13: L'Estampe Strasbourg | F13: 11 | G13: 11 | I13: Texier Carole | J13: 7 | K13: 7
A14: LAFABRIE Bernard Gabriel | B14: 20 | C14: 20 | E14: Atelier le Grand Village | F14: 11 | G14: 11 | I14: GOUX Claudine | J14: 7 | K14: 7
A15: DUBART Agnès | B15: 4 | C15: 17 | E15: Réseau des médiathèques de la Communauté d'Agglomération Hérault-Méditérranée | F15: 7 | G15: 7 | I15: Réseau des médiathèques de la Communauté d'Agglomération Hérault-Méditérranée | J15: 6 | K15: 6
A16: Astrid de La Forest | B16: 15 | C16: 15 | E16: ABELANET Sylvie | F16: 6 | G16: 6 | I16: RUIZ | J16: 5 | K16: 5
A17: PICARD Jean-Marie | B17: 15 | C17: 15 | E17: MARTIN Edouard | F17: 5 | G17: 5 | I17: Benard Elise | J17: 4 | K17: 4
A18: GOUTTEFANJAT Patrice | B18: 12 | C18: 12 | E18: Piketty | F18: 5 | G18: 5 | I18: Douillard Nathalie | J18: 4 | K18: 4
A19: GASSER Françoise | B19: 12 | C19: 12 | E19: DUBART Agnès | F19: 5 | G19: 5 | I19: Colin Judith | J19: 4 | K19: 4
A20: BEALU François | B20: 1 | C20: 9 | E20: Galerie LEIZOROVICI | F20: 4 | G20: 4 | I20: Centre d'Art Contemporain Ateliers de l'Imprimé | J20: 4 | K20: 4
A21: DORMONT Eric | B21: 9 | C21: 9 | E21: Baltar Mireille | F21: 4 | G21: 4 | I21: LAFON Martine | J21: 3 | K21: 3
A22: ECOLE SUPERIEURE DES BEAUX-ARTS DE NANTES METROPOLE | B22: 8 | C22: 8 | E22: Guillaume Elsa | F22: 4 | G22: 4 | I22: Manufacture d'images | J22: 3 | K22: 3
A23: Centre d'Art Contemporain Ateliers de l'Imprimé | B23: 5 | C23: 5 | E23: La Gravure originale | F23: 4 | G23: 4 | I23: Lalouette Jean-Claude | J23: 3 | K23: 3
A24: ROUILLY LE CHEVALLIER Marie-Antoinette | B24: 4 | C24: 4 | E24: Le Petit Jaunais | F24: 3 | G24: 3 | I24: AUTHOUART Daniel | J24: 2 | K24: 2
A25: AUTHOUART Daniel | B25: 4 | C25: 4 | E25: Manufacture d'images | F25: 2 | G25: 2 | I25: Chavignot Pierre | J25: 2 | K25: 2
A26: Lê Laureline | B26: 4 | C26: 4 | E26: LEROY-GARIOUD Françoise | F26: 2 | G26: 2 | I26: LE BAIL Loïc | J26: 2 | K26: 2
A27: LEROY-GARIOUD Françoise | B27: 3 | C27: 3 | E27: PESCHEUX, Marion | F27: 1 | G27: 1 | I27: Galerie LEIZOROVICI | J27: 1 | K27: 1
A28: DUPONT Albert | B28: 2 | C28: 2 | E28: DUPONT Albert | F28: 1 | G28: 1 | I28: Laszlo Jean-Noël | J28: 1 | K28: 1
A29: Musée de Gravelines | B29: 1 | C29: 1 | E29: Bibliothèque Forney | F29: 1 | G29: 1 | I29: DUBART Agnès | J29: 1 | K29: 1
A30: BLANQUET Stéphane | B30: 1 | C30: 1 | E30: GSN Galerie | F30: 1 | G30: 1 | I30: Item | J30: 1 | K30: 1
A31: Mairie de Lorient - Service culturel | B31: 1 | C31: 1 | E31: Total | F31: =SUM(F6:F30) -> 242 | G31: =SUM(G6:G30) -> 253 | I31: Kazan | J31: 1 | K31: 1
A32: MAURE Rémy | B32: 1 | C32: 1 | I32: Association Juste Ici | J32: 1 | K32: 1
A33: Total | B33: =SUM(B6:B32) -> 336 | C33: =SUM(C6:C32) -> 433 | I33: Totzl | J33: =SUM(J6:J32) -> 336 | K33: =SUM(K6:K32) -> 366
A35: Source : Entrées dépôt légal
A40: Nombre de documents déposés répartis par tranche de tirage
A42: Tranche de tirage | B42: 2016 | C42: 2017 | D42: 2018
A43: Non précisé | D43: 49
A44: 1 - 10 | B44: 150 | C44: 108 | D44: 23
A45: 11 - 20 | B45: 144 | C45: 82 | D45: 99
A46: 21 - 30 | B46: 58 | C46: 33 | D46: 36
A47: 31 - 50 | B47: 48 | C47: 11 | D47: 72
A48: 51 - 100 | B48: 24 | C48: 4 | D48: 46
A49: 101 - 300 | B49: 6 | C49: 3 | D49: 37
A50: 301 et plus | B50: 3 | C50: 12 | D50: 4
A51: Total | B51: =SUM(B44:B50) -> 433 | C51: =SUM(C44:C50) -> 253 | D51: =SUM(D43:D50) -> 366
A54: Catégories de déposants - Estampe
B56: 2016 | D56: 2017 | F56: 2018
A57: Catégories | B57: Nb de déposants | C57: Nb de documents déposés | D57: Nb de déposants | E57: Nb de documents déposés | F57: Nb de déposants | G57: Nb de documents déposés
A58: Associations et assimilés | D58: 1 | E58: 2 | F58: 2 | G58: 4
A59: Auteurs auto-édités | B59: 16 | C59: 210 | D59: 13 | E59: 135 | F59: 17 | G59: 89
A60: Collectivités publiques | B60: 4 | C60: 15 | D60: 2 | E60: 8 | F60: 2 | G60: 10
A61: Editeurs professionnels | B61: 3 | C61: 59 | D61: 4 | E61: 30 | F61: 1 | G61: 1
A62: Imprimeurs professionnels | B62: 3 | C62: 128 | D62: 2 | E62: 59 | F62: 4 | G62: 261
A63: Galeries | B63: 1 | C63: 21 | D63: 3 | E63: 19 | F63: 1 | G63: 1
A64: Total | B64: =SUM(B58:B63) -> 27 | C64: 433 | D64: 25 | E64: 253 | F64: 27 | G64: 366
A67: Nombre de déposants par localisation géographique - Estampe
A69: Département | B69: Nb déposants 2016 | C69: Nb déposants 2017 | D69: Nb déposants 2018
A70: Paris | B70: 8 | C70: 8 | D70: 10
A71: Hauts-de-Seine | B71: 2 | C71: 2
A72: Seine-Saint-Denis | C72: 1
A73: Val-de-Marne | B73: 1 | C73: 3 | D73: 1
A74: Val-d'Oise | D74: 1
A75: Yvelines | B75: 2 | C75: 1
A76: Alpes-Maritimes | D76: 1
A77: Aveyron | B77: 1
A78: Bouches-du-Rhône | B78: 1
A79: Charente | B79: 1 | C79: 1 | D79: 1
A80: Charente-Maritime | D80: 1
A81: Corrèze | C81: 1 | D81: 1
A82: Côtes-d'Armor | B82: 1
A83: Doubs | D83: 1
A84: Eure | B84: 1 | C84: 1
A85: Hérault | B85: 2 | C85: 1 | D85: 1
A86: Jura | B86: 1 | D86: 1
A87: Loire-Atlantique | B87: 1 | C87: 1
A88: Lot-et-Garonne | B88: 1
A89: Morbihan | B89: 1 | D89: 1
A90: Nord | B90: 2 | C90: 1 | D90: 2
A91: Puy-de-Dôme | C91: 1 | D91: 1
A92: Pyrénées-Atlantiques | C92: 1
A93: Bas-Rhin | C93: 1
A94: Rhône | B94: 1 | C94: 1 | D94: 1
A95: Seine-Maritime | B95: 1 | D95: 1
A96: Var | D96: 1
A97: Vienne | B97: 1 | D97: 1
A98: Total | B98: =SUM(B70:B97) -> 29 | C98: =SUM(C70:C97) -> 25 | D98: =SUM(D70:D97) -> 27
A101: Nombre de documents par nature - Estampe
A103: Nature de documents | B103: 2016 | C103: 2017 | D103: 2018
A104: Estampe originale | B104: 341 | C104: 241 | D104: 330
A105: Portfolio d'estampes* | B105: 69 | C105: 12 | D105: 33
A106: Carte à jouer** | B106: 22
A107: Affiche | B107: 1
A108: Ephemera d'artiste (flyers, ex-libris, bloc note…) | D108: 3
A109: Total | B109: =SUM(B104:B108) -> 433 | C109: =SUM(C104:C108) -> 253 | D109: =SUM(D104:D108) -> 366
A110: *Nombre d'estampes parues sous portfolio
A111: **Nombre de cartes dans 1 jeu

Sheet Livre d'artiste Livre graphique
A2: Liste des déposants par année de dépôt - Livre d'artiste, livre graphique
B5: 2016 | F5: 2017 | J5: 2018
A6: Nom déposant | B6: Nb dépôts | C6: Documents déposés | E6: Nom déposant | F6: Nb dépôts | G6: Documents déposés | I6: Nom déposant | J6: Nb dépôts | K6: Documents déposés
A7: Le Dernier Cri | B7: 26 | C7: 26 | E7: CLERC Philippe | F7: 18 | G7: 18 | I7: Le Dernier Cri | J7: 14 | K7: 14
A8: CLERC Philippe | B8: 1 | C8: 15 | E8: Les éditons du nain qui tousse | F8: 10 | G8: 10 | I8: Association Juste Ici | J8: 14 | K8: 14
A9: BLANQUET Stéphane | B9: 10 | C9: 10 | E9: Le Dernier Cri | F9: 9 | G9: 9 | I9: Pagni Gianpaolo | J9: 10 | K9: 10
A10: Editions Solo ma non troppo | B10: 5 | C10: 5 | E10: Editions Incertain Sens | F10: 5 | G10: 5 | I10: Escande Ghislaine | J10: 9 | K10: 9
A11: Mekanik copulaire | B11: 5 | C11: 5 | E11: Edition Le petit jaunais | F11: 5 | G11: 5 | I11: CHAMCHINOV Serge | J11: 6 | K11: 6
A12: Editions Incertain Sens | B12: 4 | C12: 4 | E12: Editions Solo ma non troppo | F12: 5 | G12: 5 | I12: Christophe daviet-théry éditions et livres d'artistes | J12: 4 | K12: 4
A13: LAFABRIE Bernard Gabriel | B13: 4 | C13: 4 | E13: Manufacture d'images - Centre culturel le bief | F13: 3 | G13: 3 | I13: Le Petit Jaunais | J13: 3 | K13: 3
A14: CHAMCHINOV Serge | B14: 4 | C14: 4 | E14: Lorem Ipsum | F14: 2 | G14: 2 | I14: Editions Incertain Sens | J14: 2 | K14: 2
A15: Graisse animale | B15: 3 | C15: 3 | E15: Musée de Gravelines | F15: 2 | G15: 2 | I15: Editions Gasoline | J15: 2 | K15: 2
A16: GUERCHET-JEANNIN Pierre | B16: 2 | C16: 2 | E16: Editions du Trainailleur | F16: 2 | G16: 2 | I16: Editions Solo ma non troppo | J16: 2 | K16: 2
A17: Le Petit Jaunais | B17: 2 | C17: 2 | E17: CARRE Benoît | F17: 2 | G17: 2 | I17: Haute école des arts du Rhin | J17: 1 | K17: 1
A18: Association Fauteuil Vapeur | B18: 2 | C18: 2 | E18: Mesguich Stéphane | F18: 1 | G18: 1 | I18: Le Grand Tetra | J18: 1 | K18: 1
A19: Editions Journaud | B19: 2 | C19: 2 | E19: Mennefile Caroline | F19: 1 | G19: 1 | I19: Laurence Dumaine Calle | J19: 1 | K19: 1
A20: REPRO DU LEMAN | B20: 1 | C20: 1 | E20: Christophe daviet-théry éditions et livres d'artistes | F20: 1 | G20: 1 | I20: Savoye Etienne | J20: 1 | K20: 1
A21: Atelier Sabordage | B21: 1 | C21: 1 | E21: GIRAUDON | F21: 1 | G21: 1 | I21: Allemane Olivier | J21: 1 | K21: 1
A22: Lézard Actif Editions | B22: 1 | C22: 1 | E22: Editions ju-young Kim | F22: 1 | G22: 1 | I22: Editions Terrain Vague | J22: 1 | K22: 1
A23: Association POLLEN | B23: 1 | C23: 1 | E23: Association Pollen | F23: 1 | G23: 1 | I23: Total | J23: =SUM(J7:J22) -> 72 | K23: =SUM(K7:K22) -> 72
A24: Palais de Tokyo | B24: 1 | C24: 1 | E24: Association Fauteuil Vapeur | F24: 1 | G24: 1
A25: Centre des livres d'artistes | B25: 1 | C25: 1 | E25: Total | F25: =SUM(F7:F24) -> 70 | G25: =SUM(G7:G24) -> 70
A26: ECOLE SUPERIEURE D'ART D'AIX-EN-PROVENCE | B26: 1 | C26: 1
A27: Atelier Catherine André | B27: 1 | C27: 1
A28: Total | B28: =SUM(B7:B27) -> 78 | C28: =SUM(C7:C27) -> 92
A30: Nombre de déposants par localisation géographique - livre d'artiste, livre graphique
A32: Département | B32: 2016 | C32: 2017 | D32: 2018
A33: Paris | B33: 6 | C33: 4 | D33: 4
A34: Yvelines | B34: 1 | C34: 1
A35: Seine-Saint-Denis | C35: 1 | D35: 1
A36: Val-de-Marne | C36: 1 | D36: 2
A37: Aveyron | B37: 1
A38: Bouches-du-Rhône | B38: 2 | C38: 1 | D38: 2
A39: Charente | D39: 1
A40: Doubs | D40: 2
A41: Gironde | B41: 1
A42: Ille-et-Vilaine | B42: 1 | C42: 2 | D42: 1
A43: Loire-Atlantique | B43: 1 | C43: 1 | D43: 1
A44: Lot-et-Garonne | B44: 1 | C44: 1
A45: Manche | B45: 1 | D45: 1
A46: Nord | B46: 2 | C46: 1
A47: Puy-de-Dôme | C47: 1
A48: Bas-Rhin | B48: 3 | C48: 2 | D48: 1
A49: Vendée | C49: 1
A50: Haute-Vienne | B50: 1
A51: Yonne | C51: 1
A52: Total | B52: =SUM(B33:B51) -> 21 | C52: =SUM(C33:C51) -> 18 | D52: =SUM(D33:D51) -> 16
A56: Nombre de documents déposés répartis par tranche de tirage
A58: Tranche de tirage | B58: 2016 | C58: 2017 | D58: 2018
A59: Non précisé | B59: 31 | C59: 25 | D59: 8
A60: 1 - 10 | B60: 11 | C60: 0 | D60: 1
A61: 11 - 20 | B61: 5 | C61: 2 | D61: 4
A62: 21 - 30 | B62: 0 | C62: 10 | D62: 4
A63: 31 - 50 | B63: 2 | C63: 1 | D63: 5
A64: 51 - 100 | B64: 6 | C64: 6 | D64: 15
A65: 101 - 300 | B65: 23 | C65: 15 | D65: 29
A66: 301 et plus | B66: 14 | C66: 11 | D66: 6
A67: Total | B67: =SUM(B59:B66) -> 92 | C67: =SUM(C59:C66) -> 70 | D67: =SUM(D59:D66) -> 72
A70: Catégories de déposants - Livre d'artiste, livre graphique
B72: 2016 | D72: 2017 | F72: 2018
A73: Catégories de déposants | B73: Nb de déposants | C73: Nb de documents déposés | D73: Nb de déposants | E73: Nb de documents déposés | F73: Nb de déposants | G73: Nb de documents déposés
A74: Associations et assimilés | B74: 2 | C74: 3 | D74: 3 | E74: 5 | F74: 4 | G74: 18
A75: Auteurs auto-édités | B75: 6 | C75: 36 | D75: 5 | E75: 23 | F75: 5 | G75: 27
A76: Collectivités publiques | B76: 1 | C76: 1 | D76: 1 | E76: 2 | F76: 1 | G76: 1
A77: Editeurs professionnels | B77: 11 | C77: 51 | D77: 9 | E77: 40 | F77: 6 | G77: 26
A78: Sociétés et assimilés | B78: 1 | C78: 1
A79: Total | B79: =SUM(B75:B78) -> 19 | C79: =SUM(C74:C78) -> 92 | D79: =SUM(D74:D78) -> 18 | E79: =SUM(E74:E78) -> 70 | F79: =SUM(F74:F78) -> 16 | G79: =SUM(G74:G78) -> 72
A82: Nombre de documents par nature - Livre d'artiste, livre graphique
A84: Nature de documents | B84: 2016 | C84: 2017 | D84: 2018
A85: Livre graphique - graphzine | B85: 65 | C85: 16 | D85: 38
A86: Livre d'artiste | B86: 27 | C86: 54 | D86: 34
A87: Total | B87: =SUM(B85:B86) -> 92 | C87: =SUM(C85:C86) -> 70 | D87: =SUM(D85:D86) -> 72

Sheet Photographie
A2: Liste des déposants par année de dépôt - Photographie
B4: 2016 | F4: 2017 | J4: 2018
A5: Nom déposant | B5: Nb dépôts | C5: Documents déposés | E5: Nom déposant | F5: Nb dépôts | G5: Documents déposés | I5: Nom déposant | J5: Nb dépôts | K5: Documents déposés
A6: Les Berceurs d'instantanés | B6: 1 | C6: 80 | E6: Sepchat The (M) Editions | F6: 3 | G6: 42 | I6: Fédonel Arnoux | J6: 1 | K6: 243
A7: Sepchat The (M) Editions | B7: 3 | C7: 41 | E7: Philippe Rivens | F7: 1 | G7: 20 | I7: Despatin et Gobeli | J7: 5 | K7: 88
A8: Monnier Annick | B8: 1 | C8: 22 | E8: Jean-Pierre Gaumé | F8: 1 | G8: 17 | I8: Nicole Lejeune | J8: 1 | K8: 44
A9: Geneviève Chevalier & Florent Fajole éditeurs | B9: 1 | C9: 6 | E9: Abella Manuel | F9: 2 | G9: 3 | I9: Jean-Pierre Gaumé | J9: 1 | K9: 22
A10: Charlie Wayne | B10: 1 | C10: 1 | E10: La Louce | F10: 1 | G10: 3 | I10: Boettcher michel | J10: 20 | K10: 20
A11: Total | B11: =SUM(B6:B10) -> 7 | C11: =SUM(C6:C10) -> 150 | E11: Pillenière Sebastien | F11: 1 | G11: 2 | I11: Philippe Rivens | J11: 1 | K11: 15
E12: Total | F12: =SUM(F6:F11) -> 9 | G12: =SUM(G6:G11) -> 87 | I12: Roffat Claude | J12: 1 | K12: 12
I13: Jean Lambert | J13: 1 | K13: 8
I14: f de phosphène | J14: 5 | K14: 5
I15: the(M) éditions - Sepchat Editions | J15: 2 | K15: 2
A16: Nombre de documents déposés répartis par tranche de tirage | I16: Les éditions du courlis déchaîné | J16: 1 | K16: 1
I17: Total | J17: =SUM(J6:J16) -> 39 | K17: =SUM(K6:K16) -> 460
A18: Tranche de tirage | B18: 2016 | C18: 2017 | D18: 2018
A19: Tirage inconnu | D19: 427
A20: 1 - 10 | B20: 29 | C20: 85 | D20: 21
A21: 11 - 20
A22: 21 - 30
A23: 31 - 50 | B23: 80
A24: 51 - 100 | B24: 25 | C24: 1 | D24: 12
A25: 101 - 300 | B25: 1 | C25: 1
A26: 301 et plus | B26: 15
A27: Total | B27: =SUM(B20:B26) -> 150 | C27: =SUM(C20:C26) -> 87 | D27: =SUM(D19:D26) -> 460
A31: Nombre de déposants par localisation géographique - Photographie
A33: Département | B33: 2016 | C33: 2017 | D33: 2018
A34: Paris | B34: 2 | C34: 3 | D34: 4
A35: Essonne | D35: 1
A36: Hauts-de-Seine | D36: 1
A37: Bouches-du-Rhône | C37: 1 | D37: 2
A38: Côtes-d'Or | B38: 1
A39: Haute-Garonne | D39: 1
A40: Indre-et-Loire | C40: 1 | D40: 1
A41: Isère
A42: Loire-Atlantique | C42: 1
A43: Moselle | B43: 1
A44: Nord | B44: 1
A45: Belgique | D45: 1
A46: Total | B46: =SUM(B34:B45) -> 5 | C46: =SUM(C34:C45) -> 6
A48: Catégories de déposants - Photographie
B49: 2016 | D49: 2017 | F49: 2018
B50: Nb de déposants | C50: Nb de documents déposés | D50: Nb de déposants | E50: Nb de documents déposés | F50: Nb de déposants | G50: Nb de documents déposés
A51: Associations et assimilés | D51: 1 | E51: 3
A52: Auteurs auto-édités | B52: 2 | C52: 23 | D52: 4 | E52: 42 | F52: 7 | G52: 440
A53: Editeurs professionnels | B53: 2 | C53: 47 | D53: 1 | E53: 42 | F53: 4 | G53: 20
A54: Sociétés et assimilés | B54: 1 | C54: 80
A55: Galerie
A56: Collectivités publiques
A57: Total | B57: =SUM(B52:B54) -> 5 | C57: =SUM(C52:C54) -> 150 | D57: =SUM(D51:D53) -> 6 | E57: =SUM(E51:E53) -> 87 | F57: =SUM(F51:F56) -> 11 | G57: =SUM(G51:G56) -> 460
A59: Nature de documents - Secteur photographie
A61: Nature de documents | B61: 2016 | C61: 2017 | D61: 2018
A62: Photographie positive originale | B62: 150 | C62: 85 | D62: 433
A63: Périodique* | C63: 1
A64: Portfolio de photographie* | B64: 5 | C64: 3
A65: Poster | D65: 20
A66: Livre de photographes | C66: 2 | D66: 7
A67: Total | B67: =SUM(B62) -> 150 | C67: =SUM(C62+C66) -> 87 | D67: =SUM(D62:D66) -> 460
A68: *Le périodique et portfolio ne sont pas compris dans le total ; ses planches sont comptabilisées à la ligne "photographie positive originale"
